[Event "*** Titled Tuesday Blitz"]
[Site "Chess.com"]
[Date "2021.02.09"]
[Round "3"]
[White "alexg2003"]
[Black "louis198"]
[Result "0-1"]
[WhiteElo "2386"]
[BlackElo "2563"]
[TimeControl "180+1"]
[EndTime "10:29:58 PST"]
[Termination "louis198 won by resignation"]

1. e4 {[%clk 0:02:59.2]} 1... e6 {[%clk 0:03:00.4]} 2. d3 {[%clk 0:02:57.8]}
2... d5 {[%clk 0:03:01.3]} 3. Nd2 {[%clk 0:02:57.9]} 3... Nf6 {[%clk 0:03:01.1]}
4. g3 {[%clk 0:02:56.7]} 4... Bc5 {[%clk 0:03:01.6]} 5. Ngf3 {[%clk 0:02:52.9]}
5... dxe4 {[%clk 0:02:57.5]} 6. d4 {[%clk 0:02:21]} 6... Bxd4 {[%clk 0:02:36.7]}
7. Nxd4 {[%clk 0:02:17.2]} 7... Qxd4 {[%clk 0:02:35]} 8. c3 {[%clk 0:02:17.7]}
8... Qb6 {[%clk 0:02:29.6]} 9. Nxe4 {[%clk 0:02:10.6]} 9... Nxe4 {[%clk
0:02:25.8]} 10. Qa4+ {[%clk 0:02:10.7]} 10... Bd7 {[%clk 0:02:26.1]} 11. Qxe4
{[%clk 0:02:10.9]} 11... Bc6 {[%clk 0:02:26.3]} 12. Qe5 {[%clk 0:02:08.8]} 12...
Bxh1 {[%clk 0:02:25.4]} 13. Qxg7 {[%clk 0:02:08.6]} 13... Rf8 {[%clk 0:02:25.5]}
14. Bh6 {[%clk 0:02:08.4]} 14... Nd7 {[%clk 0:02:25.6]} 15. Qg5 {[%clk
0:01:22.2]} 15... Qxb2 {[%clk 0:02:11.8]} 16. Rc1 {[%clk 0:01:21.7]} 16... f6
{[%clk 0:02:01.1]} 17. Qh5+ {[%clk 0:01:21]} 17... Rf7 {[%clk 0:01:59.9]} 18.
Bh3 {[%clk 0:01:14.2]} 18... Bd5 {[%clk 0:01:56.6]} 19. c4 {[%clk 0:01:11.1]}
19... Qb4+ {[%clk 0:01:44.6]} 20. Bd2 {[%clk 0:01:09.5]} 20... Qe7 {[%clk
0:01:38.9]} 21. cxd5 {[%clk 0:01:01.7]} 21... exd5+ {[%clk 0:01:39]} 22. Kf1
{[%clk 0:01:01.1]} 22... O-O-O {[%clk 0:01:35.5]} 23. Re1 {[%clk 0:01:00.5]}
23... Qf8 {[%clk 0:01:28.7]} 24. Qxd5 {[%clk 0:00:59.2]} 24... f5 {[%clk
0:01:24.9]} 25. Bg5 {[%clk 0:00:57.6]} 25... Re8 {[%clk 0:01:21]} 26. Rc1 {[%clk
0:00:32]} 26... Nb6 {[%clk 0:01:12.6]} 27. Qa5 {[%clk 0:00:21.9]} 27... Kb8
{[%clk 0:01:08.2]} 28. Bf4 {[%clk 0:00:16.5]} 28... Re6 {[%clk 0:00:40.4]} 29.
Bg2 {[%clk 0:00:13.6]} 29... Qd8 {[%clk 0:00:31.6]} 30. Bf3 {[%clk 0:00:11.2]}
30... Re4 {[%clk 0:00:23.9]} 31. Bxe4 {[%clk 0:00:10.5]} 31... fxe4 {[%clk
0:00:24.8]} 32. Qe5 {[%clk 0:00:10.1]} 32... Re7 {[%clk 0:00:18.7]} 33. Qf6
{[%clk 0:00:08.6]} 33... Qe8 {[%clk 0:00:17.8]} 34. Rd1 {[%clk 0:00:05.7]} 34...
a6 {[%clk 0:00:17.5]} 35. Rc1 {[%clk 0:00:05.8]} 35... Nd5 {[%clk 0:00:17]} 36.
Qd4 {[%clk 0:00:05.7]} 36... Nxf4 {[%clk 0:00:17]} 37. gxf4 {[%clk 0:00:06.6]}
37... e3 {[%clk 0:00:14.3]} 38. fxe3 {[%clk 0:00:06.7]} 38... Rxe3 {[%clk
0:00:15.2]} 39. Qc5 {[%clk 0:00:06.5]} 39... c6 {[%clk 0:00:11.5]} 40. Qd6+
{[%clk 0:00:06.2]} 40... Ka8 {[%clk 0:00:11.4]} 41. Kf2 {[%clk 0:00:05.5]} 41...
Qe4 {[%clk 0:00:11.1]} 42. Qd8+ {[%clk 0:00:04.2]} 42... Ka7 {[%clk 0:00:10.6]}
43. Qh4 {[%clk 0:00:03.3]} 43... Qf3+ {[%clk 0:00:10.2]} 44. Kg1 {[%clk
0:00:03.8]} 44... Re2 {[%clk 0:00:10.1]} 45. Qg3 {[%clk 0:00:02.8]} 45... Qxg3+
{[%clk 0:00:09.4]} 46. hxg3 {[%clk 0:00:03.7]} 46... Rxa2 {[%clk 0:00:09.8]} 47.
Re1 {[%clk 0:00:04]} 47... Ra5 {[%clk 0:00:09.7]} 48. Re7 {[%clk 0:00:04.3]}
48... Rh5 {[%clk 0:00:10.3]} 49. g4 {[%clk 0:00:04.7]} 49... Rh4 {[%clk
0:00:10.2]} 50. Rg7 {[%clk 0:00:05.3]} 50... h5 {[%clk 0:00:10.4]} 51. f5 {[%clk
0:00:03.9]} 51... hxg4 {[%clk 0:00:10.1]} 52. Kg2 {[%clk 0:00:04]} 52... Rh5
{[%clk 0:00:10.1]} 53. f6 {[%clk 0:00:04.1]} 53... Rf5 {[%clk 0:00:10.4]} 54.
Rf7 {[%clk 0:00:03.4]} 54... a5 {[%clk 0:00:10.5]} 55. Kg3 {[%clk 0:00:04]}
55... a4 {[%clk 0:00:10.9]} 56. Kxg4 {[%clk 0:00:04.7]} 56... Rf1 {[%clk
0:00:09.9]} 57. Re7 {[%clk 0:00:04.1]} 57... Rxf6 {[%clk 0:00:09]} 58. Re4
{[%clk 0:00:04.8]} 58... b5 {[%clk 0:00:08.7]} 59. Re7+ {[%clk 0:00:04.9]} 59...
Kb6 {[%clk 0:00:08.4]} 0-1

[Event "*** Titled Tuesday Blitz"]
[Site "Chess.com"]
[Date "2021.02.09"]
[Round "3"]
[White "Azde"]
[Black "ChampStan"]
[Result "0-1"]
[WhiteElo "2380"]
[BlackElo "2220"]
[TimeControl "180+1"]
[EndTime "10:30:05 PST"]
[Termination "ChampStan won on time"]

1. d4 {[%clk 0:03:00.9]} 1... Nf6 {[%clk 0:02:58.6]} 2. c4 {[%clk 0:03:00.7]}
2... g6 {[%clk 0:02:58.4]} 3. Nc3 {[%clk 0:03:00.8]} 3... d5 {[%clk 0:02:58.5]}
4. Bf4 {[%clk 0:02:59.9]} 4... Bg7 {[%clk 0:02:58.1]} 5. e3 {[%clk 0:03:00.3]}
5... O-O {[%clk 0:02:57.6]} 6. cxd5 {[%clk 0:03:00.6]} 6... Nxd5 {[%clk
0:02:57]} 7. Nxd5 {[%clk 0:03:01.5]} 7... Qxd5 {[%clk 0:02:56.6]} 8. Bxc7 {[%clk
0:03:02.1]} 8... Nc6 {[%clk 0:02:26]} 9. Ne2 {[%clk 0:03:00.1]} 9... Bg4 {[%clk
0:02:20.9]} 10. f3 {[%clk 0:02:59]} 10... Bxf3 {[%clk 0:02:18.8]} 11. gxf3
{[%clk 0:02:59.9]} 11... Qxf3 {[%clk 0:02:17.5]} 12. Rg1 {[%clk 0:03:00.5]}
12... Qxe3 {[%clk 0:02:13.8]} 13. Bf4 {[%clk 0:02:54.7]} 13... Qe4 {[%clk
0:01:59]} 14. Bg2 {[%clk 0:02:52.5]} 14... Qf5 {[%clk 0:01:58.8]} 15. Bxc6
{[%clk 0:02:39.9]} 15... bxc6 {[%clk 0:01:58.5]} 16. Qd2 {[%clk 0:02:19.7]}
16... Rfd8 {[%clk 0:01:51.9]} 17. Rg5 {[%clk 0:02:01.6]} 17... Qe4 {[%clk
0:01:42.1]} 18. Qe3 {[%clk 0:01:50.8]} 18... Qh1+ {[%clk 0:01:31.4]} 19. Rg1
{[%clk 0:01:24.5]} 19... Qd5 {[%clk 0:01:30.6]} 20. Be5 {[%clk 0:01:16.8]} 20...
Bxe5 {[%clk 0:00:47.7]} 21. dxe5 {[%clk 0:01:04.7]} 21... Rab8 {[%clk
0:00:42.7]} 22. Nc3 {[%clk 0:00:58.8]} 22... Qc4 {[%clk 0:00:29.3]} 23. Rd1
{[%clk 0:00:43.6]} 23... Rxd1+ {[%clk 0:00:17]} 24. Nxd1 {[%clk 0:00:44.5]}
24... Rd8 {[%clk 0:00:15.1]} 25. Qe2 {[%clk 0:00:25.5]} 25... Qxa2 {[%clk
0:00:13.2]} 26. Rg3 {[%clk 0:00:25]} 26... Qa5+ {[%clk 0:00:12.2]} 27. Kf2
{[%clk 0:00:23.2]} 27... Rd5 {[%clk 0:00:10.6]} 28. Nc3 {[%clk 0:00:17.4]} 28...
Rxe5 {[%clk 0:00:09.5]} 29. Re3 {[%clk 0:00:17.9]} 29... Rf5+ {[%clk 0:00:09.4]}
30. Kg2 {[%clk 0:00:17.5]} 30... e6 {[%clk 0:00:08.4]} 31. Rf3 {[%clk
0:00:16.9]} 31... Rg5+ {[%clk 0:00:08.5]} 32. Rg3 {[%clk 0:00:16.8]} 32... Rf5
{[%clk 0:00:08.2]} 33. Qd2 {[%clk 0:00:13.8]} 33... Qe5 {[%clk 0:00:07.7]} 34.
Qe2 {[%clk 0:00:10.9]} 34... Qf6 {[%clk 0:00:07.4]} 35. Ne4 {[%clk 0:00:10.1]}
35... Qd4 {[%clk 0:00:07.9]} 36. Nf2 {[%clk 0:00:09.3]} 36... Re5 {[%clk
0:00:07.1]} 37. Qf3 {[%clk 0:00:08.2]} 37... c5 {[%clk 0:00:05.6]} 38. Qa8+
{[%clk 0:00:08]} 38... Kg7 {[%clk 0:00:05.4]} 39. Qf3 {[%clk 0:00:08.7]} 39...
Rf5 {[%clk 0:00:05.6]} 40. Qe2 {[%clk 0:00:08.7]} 40... Qf6 {[%clk 0:00:05.5]}
41. Ne4 {[%clk 0:00:08]} 41... Qd4 {[%clk 0:00:05.8]} 42. Nf2 {[%clk 0:00:08]}
42... c4 {[%clk 0:00:06.2]} 43. Rg4 {[%clk 0:00:06.6]} 43... Qf6 {[%clk
0:00:05.4]} 44. Rg3 {[%clk 0:00:05.8]} 44... c3 {[%clk 0:00:04.3]} 45. bxc3
{[%clk 0:00:05.6]} 45... Re5 {[%clk 0:00:03.5]} 46. Qd3 {[%clk 0:00:04.8]} 46...
h5 {[%clk 0:00:03.3]} 47. Qf3 {[%clk 0:00:04.3]} 47... Rf5 {[%clk 0:00:03.4]}
48. Qe3 {[%clk 0:00:04.5]} 48... h4 {[%clk 0:00:03.6]} 49. Rg4 {[%clk
0:00:04.3]} 49... Rh5 {[%clk 0:00:03.8]} 50. Nh3 {[%clk 0:00:04.2]} 50... Rf5
{[%clk 0:00:02.9]} 51. Qd4 {[%clk 0:00:03.8]} 51... e5 {[%clk 0:00:03.3]} 52.
Qe3 {[%clk 0:00:04.2]} 52... Qc6+ {[%clk 0:00:03.4]} 53. Re4 {[%clk 0:00:03.1]}
53... Rf6 {[%clk 0:00:03]} 54. Nf2 {[%clk 0:00:02.9]} 54... Rd6 {[%clk
0:00:02.9]} 55. h3 {[%clk 0:00:03]} 55... f5 {[%clk 0:00:02.9]} 0-1

[Event "*** Titled Tuesday Blitz"]
[Site "Chess.com"]
[Date "2021.02.09"]
[Round "3"]
[White "Ave_Mariia"]
[Black "Grandmaster1369"]
[Result "1-0"]
[WhiteElo "2481"]
[BlackElo "2201"]
[TimeControl "180+1"]
[EndTime "10:30:07 PST"]
[Termination "Ave_Mariia won on time"]

1. d4 {[%clk 0:03:00.9]} 1... Nf6 {[%clk 0:02:59.2]} 2. c4 {[%clk 0:03:01.2]}
2... e6 {[%clk 0:02:59.3]} 3. g3 {[%clk 0:03:01.2]} 3... Bb4+ {[%clk 0:02:59.4]}
4. Bd2 {[%clk 0:03:00.9]} 4... Qe7 {[%clk 0:02:59.9]} 5. Nf3 {[%clk 0:03:00.5]}
5... Nc6 {[%clk 0:02:57.8]} 6. Nc3 {[%clk 0:02:59.7]} 6... Bxc3 {[%clk
0:02:56.7]} 7. Bxc3 {[%clk 0:03:00]} 7... d6 {[%clk 0:02:57.1]} 8. Bg2 {[%clk
0:02:57.8]} 8... O-O {[%clk 0:02:57.2]} 9. O-O {[%clk 0:02:56.7]} 9... e5 {[%clk
0:02:57.1]} 10. d5 {[%clk 0:02:55.3]} 10... Nb8 {[%clk 0:02:54.8]} 11. b4 {[%clk
0:02:54.3]} 11... a5 {[%clk 0:02:53.8]} 12. a3 {[%clk 0:02:54]} 12... b6 {[%clk
0:02:53.2]} 13. Qc2 {[%clk 0:02:41.7]} 13... Ba6 {[%clk 0:02:52]} 14. c5 {[%clk
0:02:36.8]} 14... Nbd7 {[%clk 0:02:47]} 15. cxd6 {[%clk 0:02:17.8]} 15... cxd6
{[%clk 0:02:43.7]} 16. Rfd1 {[%clk 0:02:13]} 16... Rfc8 {[%clk 0:02:40.3]} 17.
Qb2 {[%clk 0:02:10.4]} 17... Ne4 {[%clk 0:02:29.6]} 18. Be1 {[%clk 0:02:10.2]}
18... Nef6 {[%clk 0:02:21.9]} 19. bxa5 {[%clk 0:02:00.3]} 19... bxa5 {[%clk
0:02:18.7]} 20. Bxa5 {[%clk 0:01:56]} 20... Rab8 {[%clk 0:02:18.1]} 21. Bb4
{[%clk 0:01:46.9]} 21... Nc5 {[%clk 0:02:03.1]} 22. Rac1 {[%clk 0:01:44.9]}
22... Na4 {[%clk 0:01:57]} 23. Qa2 {[%clk 0:01:36.3]} 23... Bb5 {[%clk 0:01:41]}
24. Rc2 {[%clk 0:01:31]} 24... Nb6 {[%clk 0:01:27.5]} 25. Rxc8+ {[%clk
0:01:12.3]} 25... Rxc8 {[%clk 0:01:26.9]} 26. Ne1 {[%clk 0:00:51]} 26... Bc4
{[%clk 0:01:18.4]} 27. Qb1 {[%clk 0:00:50.6]} 27... Bxe2 {[%clk 0:01:12.4]} 28.
Rd2 {[%clk 0:00:48.4]} 28... Bc4 {[%clk 0:01:09.7]} 29. Rc2 {[%clk 0:00:26.6]}
29... Nfxd5 {[%clk 0:00:44.5]} 30. Qc1 {[%clk 0:00:25.3]} 30... Qe6 {[%clk
0:00:40]} 31. Ba5 {[%clk 0:00:18.4]} 31... Ba6 {[%clk 0:00:23.5]} 32. Rc6 {[%clk
0:00:14.7]} 32... Qd7 {[%clk 0:00:13.9]} 33. Rxc8+ {[%clk 0:00:09.7]} 33... Qxc8
{[%clk 0:00:14.8]} 34. Qd2 {[%clk 0:00:09.4]} 34... Qc5 {[%clk 0:00:13]} 35. Bb4
{[%clk 0:00:06.5]} 35... Nxb4 {[%clk 0:00:12.2]} 36. axb4 {[%clk 0:00:07.4]}
36... Qb5 {[%clk 0:00:12.6]} 37. Nc2 {[%clk 0:00:07.1]} 37... h6 {[%clk
0:00:12.6]} 38. Qxd6 {[%clk 0:00:07]} 38... Nc4 {[%clk 0:00:13.5]} 39. Qd8+
{[%clk 0:00:05.7]} 39... Kh7 {[%clk 0:00:14]} 40. Be4+ {[%clk 0:00:04.7]} 40...
g6 {[%clk 0:00:14.3]} 41. Qf6 {[%clk 0:00:04.6]} 41... Nd6 {[%clk 0:00:13.8]}
42. Bg2 {[%clk 0:00:02.2]} 42... Qd7 {[%clk 0:00:12.2]} 43. Ne3 {[%clk
0:00:01.8]} 43... Qe6 {[%clk 0:00:11.6]} 44. Qd8 {[%clk 0:00:01.6]} 44... Nf5
{[%clk 0:00:11]} 45. Nd5 {[%clk 0:00:02.2]} 45... Nd4 {[%clk 0:00:10.5]} 46.
Nf6+ {[%clk 0:00:02.5]} 46... Qxf6 {[%clk 0:00:09.7]} 47. Qxf6 {[%clk
0:00:02.3]} 47... Ne2+ {[%clk 0:00:09.9]} 48. Kh1 {[%clk 0:00:02.9]} 48... Bc4
{[%clk 0:00:10.2]} 49. Qe7 {[%clk 0:00:03.1]} 49... Nd4 {[%clk 0:00:09.9]} 50.
Qxe5 {[%clk 0:00:03.4]} 50... Ne6 {[%clk 0:00:08.5]} 51. Qa5 {[%clk 0:00:03]}
51... Ng5 {[%clk 0:00:08.3]} 52. b5 {[%clk 0:00:03.8]} 52... h5 {[%clk
0:00:04.3]} 53. b6 {[%clk 0:00:03.7]} 53... h4 {[%clk 0:00:03.2]} 54. b7 {[%clk
0:00:03.6]} 54... h3 {[%clk 0:00:03.7]} 55. Bc6 {[%clk 0:00:02.8]} 1-0

[Event "*** Titled Tuesday Blitz"]
[Site "Chess.com"]
[Date "2021.02.09"]
[Round "3"]
[White "northridgehawk"]
[Black "manipun1"]
[Result "0-1"]
[WhiteElo "2341"]
[BlackElo "2283"]
[TimeControl "180+1"]
[EndTime "10:30:08 PST"]
[Termination "manipun1 won by checkmate"]

1. e4 {[%clk 0:03:00.9]} 1... d6 {[%clk 0:02:59.7]} 2. d4 {[%clk 0:02:59.1]}
2... Nf6 {[%clk 0:02:59.4]} 3. Nc3 {[%clk 0:02:56.1]} 3... e5 {[%clk 0:02:59.2]}
4. Nge2 {[%clk 0:02:55.6]} 4... Nc6 {[%clk 0:02:57.6]} 5. f3 {[%clk 0:02:54.7]}
5... Be7 {[%clk 0:02:55.7]} 6. Be3 {[%clk 0:02:52.6]} 6... O-O {[%clk
0:02:55.4]} 7. Qd2 {[%clk 0:02:52.6]} 7... d5 {[%clk 0:02:55.6]} 8. dxe5 {[%clk
0:02:47.7]} 8... Nxe5 {[%clk 0:02:54.9]} 9. Nxd5 {[%clk 0:02:45]} 9... Nc4
{[%clk 0:02:46.1]} 10. Nxe7+ {[%clk 0:02:26.2]} 10... Qxe7 {[%clk 0:02:45.5]}
11. Qc3 {[%clk 0:02:26.4]} 11... Nxe3 {[%clk 0:02:41.7]} 12. Qxe3 {[%clk
0:02:27.3]} 12... Rd8 {[%clk 0:02:33.9]} 13. Nc3 {[%clk 0:02:24.8]} 13... Qb4
{[%clk 0:02:30]} 14. Rb1 {[%clk 0:02:21.9]} 14... Be6 {[%clk 0:02:12.7]} 15. a3
{[%clk 0:02:18.6]} 15... Qb6 {[%clk 0:02:10.4]} 16. Qxb6 {[%clk 0:02:17.6]}
16... axb6 {[%clk 0:02:10.6]} 17. Bd3 {[%clk 0:02:17.9]} 17... c5 {[%clk
0:02:09]} 18. Rd1 {[%clk 0:02:09.1]} 18... g5 {[%clk 0:01:58.6]} 19. Nb5 {[%clk
0:01:54.9]} 19... Rd7 {[%clk 0:01:52.8]} 20. e5 {[%clk 0:01:47.5]} 20... Nh5
{[%clk 0:01:37.5]} 21. Be4 {[%clk 0:01:40.3]} 21... Rxd1+ {[%clk 0:01:17]} 22.
Kxd1 {[%clk 0:01:41.2]} 22... Rd8+ {[%clk 0:01:16.7]} 23. Kc1 {[%clk 0:01:37.9]}
23... Nf4 {[%clk 0:01:16.4]} 24. Nd6 {[%clk 0:01:27.5]} 24... Nxg2 {[%clk
0:00:42.2]} 25. Rg1 {[%clk 0:01:26.3]} 25... Nf4 {[%clk 0:00:41.8]} 26. Rxg5+
{[%clk 0:01:26.1]} 26... Kf8 {[%clk 0:00:41.7]} 27. Rg1 {[%clk 0:01:18.8]} 27...
Ne2+ {[%clk 0:00:40.3]} 28. Kd2 {[%clk 0:01:16.8]} 28... Nxg1 {[%clk 0:00:41.2]}
29. Ke3 {[%clk 0:01:17.2]} 29... Nh3 {[%clk 0:00:33.6]} 30. f4 {[%clk
0:01:16.5]} 30... Rd7 {[%clk 0:00:28.3]} 31. b3 {[%clk 0:01:08.5]} 31... f6
{[%clk 0:00:27.3]} 32. Nxb7 {[%clk 0:00:57.5]} 32... fxe5 {[%clk 0:00:27.3]} 33.
fxe5 {[%clk 0:00:55.1]} 33... Ng5 {[%clk 0:00:28.2]} 34. Bg2 {[%clk 0:00:51.9]}
34... Bd5 {[%clk 0:00:26]} 35. Bxd5 {[%clk 0:00:50.2]} 35... Rxd5 {[%clk
0:00:26.1]} 36. Kf4 {[%clk 0:00:49.2]} 36... Ne6+ {[%clk 0:00:25.5]} 37. Kf5
{[%clk 0:00:49.3]} 37... Nd4+ {[%clk 0:00:24.7]} 38. Ke4 {[%clk 0:00:48.7]}
38... Rd7 {[%clk 0:00:24.8]} 39. Nd6 {[%clk 0:00:47.5]} 39... Nxc2 {[%clk
0:00:24.6]} 40. Kd5 {[%clk 0:00:46.3]} 40... Nxa3 {[%clk 0:00:24.2]} 41. Kc6
{[%clk 0:00:45.5]} 41... Re7 {[%clk 0:00:24.4]} 42. Kd5 {[%clk 0:00:44.2]} 42...
Nc2 {[%clk 0:00:23.1]} 43. e6 {[%clk 0:00:43.3]} 43... Nb4+ {[%clk 0:00:23]} 44.
Ke5 {[%clk 0:00:43.1]} 44... Nc6+ {[%clk 0:00:22.9]} 45. Kf6 {[%clk 0:00:42]}
45... Nd4 {[%clk 0:00:22.9]} 46. Nc4 {[%clk 0:00:38.2]} 46... Rxe6+ {[%clk
0:00:23.8]} 47. Kg5 {[%clk 0:00:38.3]} 47... Re2 {[%clk 0:00:23.6]} 48. Nxb6
{[%clk 0:00:37.2]} 48... Nxb3 {[%clk 0:00:24.1]} 49. h4 {[%clk 0:00:36.3]} 49...
Rg2+ {[%clk 0:00:24.2]} 50. Kf4 {[%clk 0:00:36.1]} 50... Nd2 {[%clk 0:00:24.5]}
51. Nd7+ {[%clk 0:00:34.4]} 51... Ke7 {[%clk 0:00:24.1]} 52. Nxc5 {[%clk
0:00:35.3]} 52... Rh2 {[%clk 0:00:21.9]} 53. Kg4 {[%clk 0:00:35]} 53... Nc4
{[%clk 0:00:20.8]} 54. Ne4 {[%clk 0:00:34.5]} 54... Kf7 {[%clk 0:00:20.3]} 55.
Ng3 {[%clk 0:00:33.4]} 55... Kg6 {[%clk 0:00:19.2]} 56. h5+ {[%clk 0:00:31.5]}
56... Kf6 {[%clk 0:00:16.8]} 57. Ne4+ {[%clk 0:00:30.8]} 57... Ke5 {[%clk
0:00:17.1]} 58. Ng5 {[%clk 0:00:30.9]} 58... Rg2+ {[%clk 0:00:16.6]} 59. Kh4
{[%clk 0:00:30.7]} 59... Ne3 {[%clk 0:00:15.3]} 60. Nxh7 {[%clk 0:00:29.7]}
60... Nf5+ {[%clk 0:00:14.1]} 61. Kh3 {[%clk 0:00:29.2]} 61... Rg3+ {[%clk
0:00:14.1]} 62. Kh2 {[%clk 0:00:28.7]} 62... Rg7 {[%clk 0:00:14.5]} 63. Nf8
{[%clk 0:00:28.2]} 63... Rf7 {[%clk 0:00:14.2]} 64. Ng6+ {[%clk 0:00:28.1]}
64... Kf6 {[%clk 0:00:14.6]} 65. Kh3 {[%clk 0:00:29]} 65... Kg5 {[%clk
0:00:14.7]} 66. Ne5 {[%clk 0:00:27.2]} 66... Rh7 {[%clk 0:00:13.9]} 67. Nf3+
{[%clk 0:00:24.8]} 67... Kf4 {[%clk 0:00:14.8]} 68. Nd2 {[%clk 0:00:23.3]} 68...
Rxh5+ {[%clk 0:00:15.2]} 69. Kg2 {[%clk 0:00:23.5]} 69... Ne3+ {[%clk
0:00:15.6]} 70. Kg1 {[%clk 0:00:22.2]} 70... Rg5+ {[%clk 0:00:15.5]} 71. Kh1
{[%clk 0:00:21.7]} 71... Ra5 {[%clk 0:00:13]} 72. Kh2 {[%clk 0:00:20.7]} 72...
Ra2 {[%clk 0:00:12.2]} 73. Kg1 {[%clk 0:00:20.7]} 73... Rxd2 {[%clk 0:00:13.1]}
74. Kh1 {[%clk 0:00:20.7]} 74... Kg3 {[%clk 0:00:12.4]} 75. Kg1 {[%clk
0:00:20.6]} 75... Rd1# {[%clk 0:00:13.3]} 0-1

[Event "*** Titled Tuesday Blitz"]
[Site "Chess.com"]
[Date "2021.02.09"]
[Round "3"]
[White "vovachesss"]
[Black "oneshot007"]
[Result "0-1"]
[WhiteElo "2747"]
[BlackElo "2538"]
[TimeControl "180+1"]
[EndTime "10:30:11 PST"]
[Termination "oneshot007 won by checkmate"]

1. e4 {[%clk 0:03:00.9]} 1... c5 {[%clk 0:02:58.8]} 2. c3 {[%clk 0:02:59.9]}
2... d5 {[%clk 0:02:47.5]} 3. exd5 {[%clk 0:03:00.8]} 3... Qxd5 {[%clk
0:02:48.1]} 4. Nf3 {[%clk 0:03:00.5]} 4... Nc6 {[%clk 0:02:48.4]} 5. Na3 {[%clk
0:03:00.3]} 5... Bg4 {[%clk 0:02:41.7]} 6. Be2 {[%clk 0:02:58.1]} 6... e5 {[%clk
0:02:40.9]} 7. O-O {[%clk 0:02:48.7]} 7... O-O-O {[%clk 0:02:19]} 8. d3 {[%clk
0:02:17.8]} 8... f5 {[%clk 0:02:09.4]} 9. Nc4 {[%clk 0:02:11.8]} 9... Nf6 {[%clk
0:02:00.5]} 10. Ne3 {[%clk 0:02:02]} 10... Qd7 {[%clk 0:01:51.1]} 11. Nxg4
{[%clk 0:01:51.8]} 11... fxg4 {[%clk 0:01:50.8]} 12. Ng5 {[%clk 0:01:51.7]}
12... h6 {[%clk 0:01:50.5]} 13. Ne4 {[%clk 0:01:51.9]} 13... h5 {[%clk
0:01:49.3]} 14. Be3 {[%clk 0:01:46]} 14... Kb8 {[%clk 0:01:41.4]} 15. Nxc5
{[%clk 0:01:33.8]} 15... Bxc5 {[%clk 0:01:41.1]} 16. Bxc5 {[%clk 0:01:34.7]}
16... h4 {[%clk 0:01:41.7]} 17. Be3 {[%clk 0:01:13.3]} 17... Ne7 {[%clk
0:01:37.1]} 18. f3 {[%clk 0:01:03.2]} 18... Ned5 {[%clk 0:01:22.2]} 19. Bg5
{[%clk 0:00:57]} 19... g3 {[%clk 0:01:21.9]} 20. h3 {[%clk 0:00:55.5]} 20... Qf5
{[%clk 0:01:19]} 21. Qd2 {[%clk 0:00:55.3]} 21... Nf4 {[%clk 0:01:05.4]} 22.
Bxf4 {[%clk 0:00:53.3]} 22... exf4 {[%clk 0:01:04.3]} 23. d4 {[%clk 0:00:53.6]}
23... Nd5 {[%clk 0:01:01.4]} 24. Bd3 {[%clk 0:00:53.6]} 24... Qf6 {[%clk
0:00:56.5]} 25. Be4 {[%clk 0:00:53]} 25... Ne3 {[%clk 0:00:54.3]} 26. Rfe1
{[%clk 0:00:52.6]} 26... Rc8 {[%clk 0:00:50]} 27. b3 {[%clk 0:00:50.9]} 27...
Rhe8 {[%clk 0:00:47.5]} 28. Qd3 {[%clk 0:00:44.9]} 28... g5 {[%clk 0:00:47.4]}
29. c4 {[%clk 0:00:41.8]} 29... Red8 {[%clk 0:00:45.2]} 30. d5 {[%clk
0:00:41.7]} 30... Qb2 {[%clk 0:00:43.5]} 31. Qe2 {[%clk 0:00:39.9]} 31... Qe5
{[%clk 0:00:40.7]} 32. Rac1 {[%clk 0:00:34]} 32... g4 {[%clk 0:00:35.9]} 33. Qd3
{[%clk 0:00:17]} 33... gxh3 {[%clk 0:00:34]} 34. gxh3 {[%clk 0:00:17.9]} 34...
Qb2 {[%clk 0:00:31.7]} 35. Rc2 {[%clk 0:00:13.2]} 35... Nxc2 {[%clk 0:00:28]}
36. Qxc2 {[%clk 0:00:14.1]} 36... Qxc2 {[%clk 0:00:26.3]} 37. Bxc2 {[%clk
0:00:15]} 37... Re8 {[%clk 0:00:24.8]} 38. Be4 {[%clk 0:00:11]} 38... b5 {[%clk
0:00:25]} 39. Rc1 {[%clk 0:00:07.7]} 39... bxc4 {[%clk 0:00:22.3]} 40. bxc4
{[%clk 0:00:07.7]} 40... Rc5 {[%clk 0:00:21.7]} 41. Kg2 {[%clk 0:00:05.9]} 41...
Kc7 {[%clk 0:00:21.9]} 42. Kf1 {[%clk 0:00:04]} 42... Rb8 {[%clk 0:00:22.4]} 43.
Rc2 {[%clk 0:00:03.6]} 43... Rb4 {[%clk 0:00:22.5]} 44. Bd3 {[%clk 0:00:04.3]}
44... Kd6 {[%clk 0:00:22.3]} 45. Re2 {[%clk 0:00:04.3]} 45... Kd7 {[%clk
0:00:15.4]} 46. Bf5+ {[%clk 0:00:03.9]} 46... Kd8 {[%clk 0:00:14.8]} 47. Bd3
{[%clk 0:00:03.4]} 47... a5 {[%clk 0:00:14.6]} 48. Re4 {[%clk 0:00:03.2]} 48...
Rb2 {[%clk 0:00:13.3]} 49. Rxf4 {[%clk 0:00:03.3]} 49... Rd2 {[%clk 0:00:13.4]}
50. Be2 {[%clk 0:00:02.9]} 50... g2+ {[%clk 0:00:13.6]} 51. Kf2 {[%clk
0:00:02.1]} 51... Rxe2+ {[%clk 0:00:13.1]} 52. Kg1 {[%clk 0:00:02.7]} 52... Rxa2
{[%clk 0:00:10]} 53. Rxh4 {[%clk 0:00:02.8]} 53... a4 {[%clk 0:00:10.4]} 54. Rg4
{[%clk 0:00:02.5]} 54... Rb2 {[%clk 0:00:09.7]} 55. Rg6 {[%clk 0:00:01.6]} 55...
Rxc4 {[%clk 0:00:08.7]} 56. Rxg2 {[%clk 0:00:01.8]} 56... Rxg2+ {[%clk
0:00:08.1]} 57. Kxg2 {[%clk 0:00:02.7]} 57... a3 {[%clk 0:00:08.7]} 58. Kg3
{[%clk 0:00:03.4]} 58... a2 {[%clk 0:00:09]} 59. h4 {[%clk 0:00:04.3]} 59...
a1=Q {[%clk 0:00:09.5]} 60. h5 {[%clk 0:00:05.2]} 60... Qh8 {[%clk 0:00:09.6]}
61. h6 {[%clk 0:00:05.8]} 61... Qxh6 {[%clk 0:00:09.8]} 62. Kf2 {[%clk
0:00:06.7]} 62... Qf4 {[%clk 0:00:08.7]} 63. Ke2 {[%clk 0:00:06.7]} 63... Rc2+
{[%clk 0:00:08.8]} 64. Kd3 {[%clk 0:00:06.9]} 64... Qc4+ {[%clk 0:00:06.1]} 65.
Ke3 {[%clk 0:00:07.1]} 65... Re2# {[%clk 0:00:06.9]} 0-1